bitfinex/quotes_SOLUSD_20220116
["timestamp","ask_amount","ask_price","bid_price","bid_amount"]
[1642304466397,42.24975683,146.78,146.71,29.22244087]
[1642304466998,44.18823238,146.78,146.71,29.22244087]
[1642304467396,44.43823238,146.78,146.71,29.22244087]
[1642304467997,44.18823238,146.78,146.71,29.22244087]
[1642304468897,44.43823238,146.78,146.71,29.22244087]
[1642304469298,44.18823238,146.78,146.71,29.22244087]
[1642304474203,1.93847555,146.77,146.71,29.22244087]
[1642304474506,1.93847555,146.77,146.71,28.96244087]
[1642304474704,2.18847555,146.77,146.71,6.25]
[1642304474905,2.18847555,146.77,146.71,0.25]
[1642304475105,1.93847555,146.77,146.71,0.25]
[1642304475304,1.93847555,146.77,146.7,29.065]
[1642304475707,1.93847555,146.77,146.71,42.27225263]
[1642304475909,1.93847555,146.76,146.71,48.78225263]
[1642304476907,42.24975683,146.78,146.71,48.78225263]
[1642304479412,1.93847555,146.79,146.71,117.03225263]
[1642304479613,1.93847555,146.79,146.71,126.87225263]
[1642304479818,1.93847555,146.8,146.71,126.87225263]
[1642304480815,1.93847555,146.8,146.71,128.32322177]
[1642304481046,1.93847555,146.8,146.72,23.4594]
[1642304481215,1.93847555,146.8,146.73,78.09]
[1642304481418,1.93847555,146.8,146.73,84.6]
[1642304481716,1.93847555,146.8,146.74,18.82978615]
[1642304481915,1.93847555,146.8,146.75,0.26]
[1642304482317,40.04053745,146.83,146.75,0.26]
[1642304483719,40.04053745,146.83,146.75,68.51]
[1642304483919,25.36547555,146.85,146.75,16.35]
[1642304484617,23.427,146.85,146.75,16.35]
[1642304485121,42.01281775,146.84,146.75,16.35]
[1642304485720,42.26281775,146.84,146.75,16.35]
[1642304487123,42.01281775,146.84,146.75,16.35]
[1642304487326,42.01281775,146.84,146.75,84.6]
[1642304487723,42.01281775,146.84,146.75,16.35]
[1642304488226,23.427,146.85,146.77,41.30319879]
[1642304488424,23.427,146.85,146.78,0.26]
[1642304488625,22.927,146.85,146.78,0.26]
[1642304489324,72.47202838,146.85,146.78,0.26]
[1642304490827,72.47202838,146.85,146.77,47.55319879]
[1642304491327,72.72202838,146.85,146.77,47.55319879]
[1642304491726,72.47202838,146.85,146.77,47.55319879]
[1642304492128,72.47202838,146.85,146.78,0.26]
[1642304496629,72.47202838,146.85,146.77,47.55319879]
[1642304496827,72.47202838,146.85,146.78,0.26]
[1642304497030,72.72202838,146.85,146.78,0.26]
[1642304498032,74.66050393,146.85,146.78,0.26]
[1642304498630,74.66050393,146.85,146.77,47.55319879]
[1642304498828,74.66050393,146.85,146.77,41.30319879]
[1642304499034,74.66050393,146.85,146.77,41.55319879]
[1642304499229,84.50050393,146.85,146.77,41.55319879]
[1642304499430,1.93847555,146.84,146.77,41.55319879]
[1642304499829,2.18847555,146.84,146.77,41.55319879]
[1642304500231,2.18847555,146.84,146.77,41.30319879]
[1642304500631,2.18847555,146.84,146.77,41.55319879]
[1642304501333,1.93847555,146.84,146.78,0.26]
[1642304502431,74.41050393,146.85,146.78,0.26]
[1642304503032,74.66050393,146.85,146.78,0.26]
[1642304503634,74.41050393,146.85,146.78,0.26]
[1642304507742,74.66050393,146.85,146.78,0.26]
[1642304508443,1.93847555,146.84,146.78,0.26]
[1642304509643,1.93847555,146.84,146.77,47.55319879]
[1642304509850,2.18847555,146.84,146.77,41.55319879]
[1642304510044,1.93847555,146.84,146.78,0.26]
[1642304510447,1.93847555,146.82,146.78,0.26]
[1642304510943,12.49140839,146.82,146.78,0.26]
[1642304511372,1.93847555,146.84,146.78,0.26]
[1642304512376,37.39469269,146.83,146.78,0.26]
[1642304512976,1.93847555,146.84,146.78,0.26]
[1642304513176,24.86547555,146.85,146.78,0.26]
[1642304514083,46.97147344,146.84,146.78,0.26]
[1642304519379,47.22147344,146.84,146.78,0.26]
[1642304520279,47.22147344,146.84,146.76,0.26]
[1642304520480,47.22147344,146.84,146.76,36.74627149]
[1642304520679,46.97147344,146.84,146.76,42.99627149]
[1642304525386,46.97147344,146.84,146.76,42.73627149]
[1642304526985,46.97147344,146.84,146.77,0.26]
[1642304535493,24.86547555,146.85,146.77,0.26]
[1642304535794,28.927,146.85,146.77,0.26]
[1642304536491,48.87358091,146.84,146.77,0.26]
[1642304549839,54.87358091,146.84,146.77,0.26]
[1642304551137,55.12358091,146.84,146.77,0.26]
[1642304552639,55.12358091,146.84,146.76,36.73627149]
[1642304552841,55.12358091,146.84,146.76,0.25]
[1642304553041,32.7038,146.83,146.76,0.25]
[1642304553240,32.9538,146.83,146.75,1.94276322]
[1642304553440,32.9538,146.83,146.74,1.94276322]
[1642304553852,38.9538,146.83,146.74,1.94276322]
[1642304554248,40.89227555,146.83,146.73,1.94276322]
[1642304555046,40.89227555,146.83,146.74,11.12403166]
[1642304555247,11.22438031,146.8,146.74,11.12403166]
[1642304555448,9.84,146.79,146.74,11.12403166]
[1642304555647,9.84,146.79,146.71,1.94276322]
[1642304555847,10.09,146.79,146.71,2.19276322]
[1642304556083,10.09,146.79,146.7,1.94276322]
[1642304556449,10.09,146.79,146.71,0.26]
[1642304556651,10.09,146.79,146.71,38.34500168]
[1642304557049,9.84,146.79,146.71,38.34500168]
[1642304557249,9.84,146.79,146.71,44.34500168]
[1642304557449,9.84,146.79,146.71,44.59500168]
[1642304557649,9.84,146.79,146.71,46.5377649]
[1642304558853,33.466,146.82,146.71,46.5377649]
[1642304559052,33.466,146.82,146.72,24.4327]
[1642304559253,33.466,146.82,146.72,24.6827]
[1642304559453,23.626,146.82,146.73,0.26]
[1642304561859,23.626,146.82,146.73,68.51]
[1642304562060,11.77847555,146.85,146.73,68.51]
[1642304562264,18.02847555,146.85,146.74,23.2111]
[1642304562462,18.02847555,146.85,146.75,0.26]
[1642304562661,16.09,146.85,146.75,0.26]
[1642304562860,53.09817536,146.85,146.75,23.2770371]
[1642304563061,53.09817536,146.85,146.75,23.5270371]
[1642304563462,53.09817536,146.85,146.76,23.2857]
[1642304563891,53.09817536,146.85,146.77,0.26]
[1642304567392,53.09817536,146.85,146.76,0.26]
[1642304571005,23.0462,146.84,146.76,0.26]
[1642304571406,29.2962,146.84,146.76,0.26]
[1642304572204,23.2962,146.84,146.76,0.26]
[1642304572405,29.2962,146.84,146.76,0.26]
[1642304572603,37.00817536,146.85,146.76,0.26]
[1642304572803,37.00817536,146.85,146.76,24.8889]
[1642304573205,37.25817536,146.85,146.76,31.1389]
[1642304573402,23.9037,146.84,146.76,31.1389]
[1642304576637,23.9037,146.84,146.76,25.1389]
[1642304577942,23.9037,146.84,146.76,31.1389]
[1642304580841,23.9037,146.84,146.76,25.1389]
[1642304582848,23.9037,146.84,146.76,31.1389]
[1642304585153,1.93847555,146.88,146.76,109.2289]
[1642304585352,35.36864716,146.87,146.76,110.66610119]
[1642304585752,35.36864716,146.87,146.76,109.2289]
[1642304585951,24.8286,146.86,146.76,109.2289]
[1642304586754,24.8286,146.86,146.76,40.9789]
[1642304586952,24.8286,146.86,146.76,42.92166322]
[1642304587353,25.0786,146.86,146.76,42.92166322]
[1642304594689,25.0786,146.86,146.76,42.42166322]
[1642304594891,25.0786,146.86,146.77,0.26]
[1642304595293,25.0786,146.86,146.76,42.42166322]
[1642304595492,38.3996,146.86,146.76,1.94276322]
[1642304595694,48.2396,146.86,146.76,1.94276322]
[1642304595896,0.26,146.85,146.76,1.94276322]
[1642304596097,9.84,146.84,146.76,1.94276322]
[1642304596393,24.7067,146.83,146.76,1.94276322]
[1642304596595,9.84,146.82,146.74,1.94276322]
[1642304596798,23.6104,146.81,146.74,1.94276322]
[1642304597297,29.8604,146.81,146.74,1.94276322]
[1642304597696,29.8604,146.81,146.71,1.94276322]
[1642304597898,29.8604,146.81,146.72,45.09253822]
[1642304600399,29.8604,146.81,146.74,0.02269981]
[1642304602202,0.26,146.8,146.74,0.02269981]
[1642304605508,0.26,146.8,146.72,45.11520128]
[1642304605908,0.26,146.8,146.72,45.36520128]
[1642304608014,29.8604,146.81,146.72,45.36520128]
[1642304608214,23.8604,146.81,146.73,0.26]
[1642304608913,23.6104,146.81,146.73,0.26]
[1642304609413,23.6104,146.81,146.73,24.7116]
[1642304609915,23.6104,146.81,146.73,24.9616]
[1642304610517,23.6104,146.81,146.75,0.02268143]
[1642304615547,23.6104,146.81,146.73,30.9842447]
[1642304615947,29.6104,146.81,146.73,24.4742447]
[1642304616147,23.8604,146.81,146.73,0.0226447]
[1642304616347,29.8604,146.81,146.73,0.0226447]
[1642304617349,23.8604,146.81,146.73,0.0226447]
[1642304619949,0.26,146.8,146.73,0.0226447]
[1642304620553,0.26,146.8,146.7,2.19276322]
[1642304621352,0.26,146.8,146.71,45.46668432]
[1642304625457,0.26,146.8,146.69,1.94276322]
[1642304625659,0.26,146.8,146.7,0.26]
[1642304626359,0.26,146.8,146.69,1.94276322]
[1642304626557,9.84,146.79,146.7,42.00735363]
[1642304626957,16.09,146.79,146.7,42.00735363]
[1642304627156,23.1362,146.78,146.7,42.00735363]
[1642304627357,35.36864716,146.77,146.7,42.00735363]
[1642304627758,41.61864716,146.77,146.7,42.00735363]
[1642304627959,0.26,146.76,146.7,42.00735363]
[1642304635365,0.26,146.76,146.67,1.94276322]
[1642304635568,24.1278,146.76,146.67,2.19276322]
[1642304636066,30.3778,146.76,146.67,2.19276322]
[1642304636467,30.3778,146.76,146.68,38.29400704]
[1642304636965,30.3778,146.76,146.68,38.54400704]
[1642304638870,24.3778,146.76,146.69,0.26]
[1642304639870,24.1178,146.76,146.69,0.26]
[1642304640068,23.8678,146.76,146.69,0.26]
[1642304641170,23.8678,146.76,146.68,40.48677026]
[1642304641374,30.1178,146.76,146.68,40.48677026]
[1642304641572,30.1178,146.76,146.68,40.23677026]
[1642304641772,30.1178,146.76,146.69,0.26]
[1642304643575,0.26,146.75,146.69,0.26]
[1642304644477,6.0,146.76,146.69,0.26]
[1642304644976,35.36864716,146.77,146.69,0.26]
[1642304645378,35.36864716,146.77,146.69,2.20276322]
[1642304645581,35.36864716,146.77,146.69,25.28766322]
[1642304645879,35.61864716,146.77,146.69,25.53766322]
[1642304646097,35.61864716,146.77,146.7,1.94276322]
[1642304646300,35.61864716,146.77,146.71,0.26]
[1642304646699,35.36864716,146.77,146.71,0.26]
[1642304646901,0.25,146.77,146.71,0.26]
[1642304647905,7.79258593,146.8,146.71,0.26]
[1642304648104,40.57403146,146.79,146.71,0.26]
[1642304648305,63.60063146,146.79,146.71,0.26]
[1642304648507,63.85063146,146.79,146.71,0.26]
[1642304651608,63.85063146,146.79,146.71,2.20276322]
[1642304651905,0.26,146.78,146.71,2.20276322]
[1642304652506,0.26,146.78,146.71,1.94276322]
[1642304653107,0.26,146.78,146.7,1.94276322]
[1642304653708,0.26,146.78,146.69,25.02766322]
[1642304653907,0.26,146.78,146.69,24.52766322]
[1642304654708,0.26,146.78,146.7,0.26]
[1642304655707,0.26,146.78,146.69,24.77766322]
[1642304655908,0.26,146.78,146.7,0.26]
[1642304656611,0.26,146.78,146.69,24.52766322]
[1642304656809,10.1,146.78,146.69,24.52766322]
[1642304657211,16.35,146.78,146.69,1.94276322]
[1642304657408,22.6624,146.77,146.69,1.94276322]
[1642304657608,9.84,146.76,146.69,1.94276322]
[1642304658008,16.09,146.76,146.69,1.94276322]
[1642304658210,16.09,146.76,146.68,38.29400704]
[1642304658407,23.8925,146.75,146.68,38.29400704]
[1642304658611,19.52392976,146.74,146.68,38.29400704]
[1642304658908,19.77392976,146.74,146.68,38.29400704]
[1642304659909,0.26,146.73,146.68,38.29400704]
[1642304661410,6.0,146.76,146.69,0.26]
[1642304661613,1.93847555,146.78,146.69,0.26]
[1642304661810,0.25,146.76,146.69,23.6735]
[1642304662211,0.25,146.76,146.69,23.9235]
[1642304662809,43.33470867,146.77,146.69,23.9235]
[1642304663011,22.856,146.78,146.69,23.9235]
[1642304663210,1.93847555,146.8,146.69,101.0175]
[1642304663412,1.93847555,146.8,146.69,38.7675]
[1642304664018,50.18106774,146.79,146.69,38.7675]
[1642304664217,50.18106774,146.79,146.69,107.0175]
[1642304664614,50.18106774,146.79,146.69,108.96026322]
[1642304664816,50.43106774,146.79,146.69,108.96026322]
[1642304665214,50.18106774,146.79,146.69,108.96026322]
[1642304665914,50.43106774,146.79,146.7,1.94276322]
[1642304666117,50.18106774,146.79,146.7,1.94276322]
[1642304666416,50.43106774,146.79,146.71,0.26]
[1642304666615,50.43106774,146.79,146.71,23.2543]
[1642304666818,50.43106774,146.79,146.71,23.5043]
[1642304667016,50.43106774,146.79,146.71,25.44706322]
[1642304667916,50.43106774,146.79,146.71,23.5043]
[1642304668214,50.43106774,146.79,146.71,23.2543]
[1642304668929,0.26,146.78,146.71,23.2543]
[1642304669129,0.26,146.78,146.71,22.9943]
[1642304669531,23.7004,146.78,146.71,22.9943]
[1642304669829,23.9504,146.78,146.71,22.9943]
[1642304673361,23.6904,146.78,146.71,22.9943]
[1642304673560,50.18106774,146.79,146.72,0.26]
[1642304674963,50.43106774,146.79,146.72,0.26]
[1642304675566,50.43106774,146.79,146.71,22.9943]
[1642304675765,50.43106774,146.79,146.71,23.2443]
[1642304675966,0.26,146.78,146.71,23.2443]
[1642304676766,0.26,146.78,146.71,22.9943]
[1642304677271,23.8981,146.78,146.71,22.9943]
[1642304677467,24.1481,146.78,146.71,22.9943]
[1642304677969,24.1481,146.78,146.68,38.29400704]
[1642304677970,24.1481,146.78,146.68,40.23677026]
[1642304678168,30.1481,146.78,146.7,0.26]
[1642304678367,30.1481,146.78,146.68,1.94276322]
[1642304678570,11.54077588,146.77,146.68,1.94276322]
[1642304678969,8.39923251,146.76,146.68,1.94276322]
[1642304679269,9.91689348,146.74,146.68,1.94276322]
[1642304679467,26.00689348,146.74,146.68,1.94276322]
[1642304679668,26.00689348,146.74,146.66,43.3089302]
[1642304680975,20.00689348,146.74,146.66,43.5589302]
[1642304681375,20.00689348,146.74,146.67,0.26]
[1642304682276,23.3756,146.75,146.67,0.26]
[1642304682579,29.6256,146.75,146.67,0.26]
[1642304682778,29.3756,146.75,146.67,0.26]
[1642304683380,29.3756,146.75,146.67,23.0319]
[1642304683804,29.3756,146.75,146.67,23.2819]
[1642304684206,29.6256,146.75,146.67,23.2819]
[1642304688113,6.0,146.75,146.67,23.2819]
[1642304688311,48.33330968,146.76,146.67,29.2819]
[1642304688712,48.33330968,146.76,146.67,23.2819]
[1642304689113,48.33330968,146.76,146.67,24.97466322]
[1642304689413,48.58330968,146.76,146.67,24.97466322]
[1642304689613,23.7944,146.75,146.67,24.97466322]
[1642304690014,30.0444,146.75,146.67,24.97466322]
[1642304690215,0.26,146.74,146.67,23.0319]
[1642304690416,0.26,146.74,146.67,23.2819]
[1642304692917,0.26,146.74,146.67,23.0319]
[1642304696323,30.0444,146.75,146.67,23.0319]
[1642304696524,24.0444,146.75,146.67,23.2819]
[1642304698426,24.0444,146.75,146.67,25.22466322]
[1642304699425,24.0444,146.75,146.67,23.2819]
[1642304699827,0.26,146.74,146.67,23.2819]
[1642304700232,0.26,146.74,146.67,25.22466322]
[1642304701035,0.26,146.74,146.67,24.96466322]
[1642304701231,0.26,146.74,146.67,24.71466322]
[1642304701633,0.26,146.74,146.66,1.94276322]
[1642304702357,0.26,146.74,146.66,38.50094052]
[1642304702931,0.26,146.74,146.66,36.5581773]
[1642304703929,0.26,146.74,146.63,1.94276322]
[1642304704130,0.26,146.74,146.64,0.26]
[1642304704329,9.84,146.73,146.64,0.26]
[1642304704529,22.6085,146.72,146.64,0.26]
[1642304704731,22.6085,146.72,146.63,1.94276322]
[1642304704930,17.76465154,146.71,146.64,49.41065795]
[1642304705130,17.76465154,146.71,146.63,1.94276322]
[1642304705431,24.2748,146.7,146.63,1.94276322]
[1642304705829,24.5248,146.7,146.62,1.94276322]
[1642304706230,36.5048,146.7,146.62,1.94276322]
[1642304706429,9.84,146.69,146.62,1.94276322]
[1642304706831,16.09,146.69,146.62,1.94276322]
[1642304707035,16.09,146.69,146.61,1.94276322]
[1642304707629,24.6183,146.68,146.61,1.94276322]
[1642304707830,0.26,146.67,146.61,1.94276322]
[1642304708032,0.26,146.67,146.6,49.90605181]
[1642304708230,0.26,146.67,146.6,50.15605181]
[1642304709435,15.71017437,146.64,146.6,50.15605181]
[1642304709635,37.42445321,146.63,146.6,50.15605181]
[1642304709860,6.06279898,146.62,146.6,50.15605181]
[1642304710061,6.06279898,146.62,146.6,0.25]
[1642304710260,6.06279898,146.62,146.58,8.19276322]
[1642304710861,6.06279898,146.62,146.58,1.94276322]
[1642304711064,14.46779898,146.62,146.58,1.94276322]
[1642304711462,20.46779898,146.62,146.58,1.94276322]
[1642304711662,14.46779898,146.62,146.58,1.94276322]
[1642304711862,20.46779898,146.62,146.58,1.94276322]
[1642304712465,20.46779898,146.62,146.55,1.94276322]
[1642304713465,0.26,146.61,146.55,2.19276322]
[1642304713665,0.26,146.61,146.55,0.25]
[1642304713871,0.26,146.61,146.54,2.19276322]
[1642304714270,6.0,146.62,146.54,2.19276322]
[1642304714470,0.26,146.61,146.54,2.19276322]
[1642304714969,15.71017437,146.58,146.54,2.19276322]
[1642304715170,31.42034874,146.58,146.54,2.19276322]
[1642304715369,54.09385675,146.58,146.54,2.19276322]
[1642304716073,54.09385675,146.58,146.54,1.94276322]
[1642304716271,59.50785675,146.58,146.54,1.94276322]
[1642304716474,59.75785675,146.58,146.53,1.94276322]
[1642304717071,0.26,146.57,146.53,1.94276322]
[1642304717471,0.26,146.57,146.51,50.66703509]
[1642304717674,0.26,146.57,146.51,50.91703509]
[1642304718871,0.26,146.57,146.51,48.97427187]
[1642304720172,15.71017437,146.54,146.51,48.97427187]
[1642304720372,15.71017437,146.52,146.51,48.97427187]
[1642304720774,15.71017437,146.52,146.51,49.23427187]
[1642304720973,33.0732,146.61,146.51,49.23427187]
[1642304721175,9.84,146.61,146.51,56.66432442]
[1642304721374,9.84,146.61,146.52,0.26]
[1642304721575,9.84,146.65,146.52,0.26]
[1642304721775,9.84,146.65,146.52,25.0632]
[1642304721973,36.8354069,146.64,146.52,25.0632]
[1642304722174,36.8354069,146.64,146.52,31.3132]
[1642304722373,43.0854069,146.64,146.52,31.3132]
[1642304722975,43.0854069,146.64,146.52,33.25596322]
[1642304723974,0.26,146.63,146.53,1.94276322]
[1642304724374,0.26,146.63,146.54,0.26]
[1642304724975,0.26,146.63,146.53,0.51]
[1642304725374,0.26,146.63,146.53,0.26]
[1642304725675,43.0854069,146.64,146.53,0.26]
[1642304725878,43.0854069,146.64,146.53,68.51]
[1642304726078,43.0854069,146.64,146.54,1.43451243]
[1642304726477,43.0854069,146.64,146.55,0.26]
[1642304728279,66.1372069,146.64,146.55,0.26]
[1642304728676,60.1372069,146.64,146.55,0.26]
[1642304729479,0.26,146.63,146.55,0.26]
[1642304732890,0.26,146.63,146.55,2.20276322]
[1642304733091,0.26,146.63,146.56,12.37776691]
[1642304733490,0.26,146.63,146.57,0.26]
[1642304739921,0.26,146.63,146.57,2.20276322]
[1642304740124,0.26,146.63,146.57,8.45276322]
[1642304746430,0.26,146.63,146.57,8.20276322]
[1642304746633,0.26,146.63,146.57,1.94276322]
[1642304746831,9.84,146.62,146.57,1.94276322]
[1642304747334,16.09,146.62,146.57,1.94276322]
[1642304747732,16.09,146.62,146.54,1.94276322]
[1642304747931,23.4535,146.61,146.54,1.94276322]
[1642304748133,33.2935,146.61,146.54,1.94276322]
[1642304748331,39.5435,146.61,146.54,1.94276322]
[1642304748732,33.2935,146.61,146.54,0.25]
[1642304748934,33.5435,146.61,146.53,2.19276322]
[1642304749132,33.5435,146.61,146.53,1.94276322]
[1642304749333,33.5435,146.61,146.54,0.26]
[1642304749533,33.5435,146.61,146.54,2.20276322]
[1642304750333,33.5435,146.61,146.54,0.26]
[1642304751840,33.2935,146.61,146.54,0.26]
[1642304752840,33.2935,146.61,146.54,2.20276322]
[1642304753241,33.5435,146.61,146.54,2.45276322]
[1642304755943,33.5435,146.61,146.54,1.94276322]
[1642304756346,39.5435,146.61,146.54,1.94276322]
[1642304757352,39.5435,146.61,146.51,61.71927486]
[1642304762259,39.5435,146.61,146.52,0.26]
[1642304762861,33.5435,146.61,146.52,0.26]
[1642304763061,33.5435,146.61,146.52,2.20276322]
[1642304763463,33.5435,146.61,146.52,2.45276322]
[1642304763861,33.5435,146.61,146.52,8.45276322]
[1642304764062,33.5435,146.61,146.53,23.3182]
[1642304764364,33.5435,146.61,146.54,0.26]
[1642304766666,33.2935,146.61,146.54,0.26]
[1642304767967,33.5435,146.61,146.54,0.26]
[1642304768865,33.2935,146.61,146.54,0.26]
[1642304770267,33.5435,146.61,146.54,0.26]
[1642304777272,23.7035,146.61,146.53,1.94276322]
[1642304777501,33.5435,146.61,146.53,1.94276322]
[1642304777702,39.5435,146.61,146.53,1.94276322]
[1642304779005,39.5435,146.61,146.52,44.10678547]
[1642304779402,39.5435,146.61,146.53,0.26]
[1642304779602,33.5435,146.61,146.53,0.26]
[1642304779801,33.2935,146.61,146.53,0.26]
[1642304780002,33.2935,146.61,146.53,25.0921]
[1642304780403,33.2935,146.61,146.53,25.3421]
[1642304780603,33.0335,146.61,146.53,25.3421]
[1642304781005,33.0335,146.61,146.53,27.28486322]
[1642304781204,33.2835,146.61,146.53,27.28486322]
[1642304784310,0.26,146.6,146.53,27.28486322]
[1642304788114,23.4435,146.61,146.53,27.28486322]
[1642304788813,1.93847555,146.65,146.53,96.96937565]
[1642304789113,1.93847555,146.66,146.54,1.94276322]
[1642304789315,1.93847555,146.66,146.54,13.67576322]
[1642304789517,1.93847555,146.66,146.55,1.69451243]
[1642304789712,1.93847555,146.66,146.56,9.84]
[1642304789918,1.93847555,146.66,146.57,40.72385331]
[1642304790113,42.48605569,146.67,146.58,1.94276322]
[1642304790312,42.48605569,146.67,146.59,0.26]
[1642304791222,1.93847555,146.69,146.59,0.26]
[1642304791412,1.93847555,146.69,146.59,24.6013]
[1642304791816,1.93847555,146.69,146.6,68.25]
[1642304792017,1.93847555,146.69,146.6,78.09]
[1642304792216,45.44892561,146.71,146.61,1.69451243]
[1642304792413,45.44892561,146.71,146.62,41.483241]
[1642304792814,45.44892561,146.71,146.63,0.26]
[1642304793315,43.76045006,146.71,146.63,0.26]
[1642304794215,43.51045006,146.71,146.63,0.26]
[1642304797015,43.76045006,146.71,146.63,0.26]
[1642304797815,49.76045006,146.71,146.62,41.733241]
[1642304798016,49.76045006,146.71,146.62,0.25]
[1642304798217,49.76045006,146.71,146.61,24.6544]
[1642304798417,49.76045006,146.71,146.58,1.94276322]
[1642304798616,22.8731,146.7,146.58,1.94276322]
[1642304798816,23.1231,146.7,146.59,0.26]
[1642304799016,29.1231,146.7,146.59,45.9746737]
[1642304799416,29.1231,146.7,146.59,46.2246737]
[1642304799621,29.1231,146.7,146.59,45.9746737]
[1642304801429,0.26,146.69,146.6,0.26]
[1642304818214,0.26,146.69,146.6,24.8082]
[1642304818416,0.26,146.69,146.6,25.0582]
[1642304820419,0.26,146.69,146.6,0.26]
[1642304827527,2.19847555,146.69,146.6,0.26]
[1642304827729,8.44847555,146.69,146.6,0.26]
[1642304828329,24.2555,146.68,146.6,0.26]
[1642304828731,30.5055,146.68,146.6,0.26]
[1642304830231,32.44397555,146.68,146.6,0.26]
[1642304832334,0.26,146.67,146.6,0.26]
[1642304838539,0.26,146.67,146.6,24.1125]
[1642304838945,0.26,146.67,146.6,24.3625]
[1642304839341,0.26,146.67,146.6,24.1125]
[1642304840147,0.26,146.67,146.6,0.26]
[1642304840643,0.26,146.67,146.58,52.40194532]
[1642304840841,0.26,146.67,146.58,52.65194532]
[1642304842368,2.19847555,146.67,146.58,2.19276322]
[1642304842767,8.44847555,146.67,146.58,2.19276322]
[1642304842968,8.44847555,146.67,146.58,1.94276322]
[1642304843169,9.84,146.66,146.57,1.94276322]
[1642304843370,16.58751116,146.65,146.57,1.94276322]
[1642304843571,34.5676,146.64,146.57,1.94276322]
[1642304843869,0.26,146.63,146.57,1.94276322]
[1642304844270,0.26,146.63,146.55,1.94276322]
[1642304845471,0.26,146.63,146.54,40.81547928]
[1642304845671,0.26,146.63,146.55,0.26]
[1642304846869,40.8176,146.64,146.55,0.26]
[1642304847071,34.5676,146.64,146.55,0.26]
[1642304847470,34.5676,146.64,146.55,25.0004]
[1642304847871,34.5676,146.64,146.55,31.2504]
[1642304848073,34.5676,146.64,146.55,33.19316322]
[1642304848272,0.26,146.63,146.55,33.19316322]
[1642304853277,0.26,146.63,146.55,32.93316322]
[1642304854476,16.83751116,146.65,146.55,32.93316322]
[1642304854676,16.58751116,146.65,146.56,0.26]
[1642304854879,16.83751116,146.65,146.56,0.26]
[1642304855077,16.58751116,146.65,146.56,0.26]
[1642304855479,16.83751116,146.65,146.56,0.26]
[1642304855880,24.5925,146.64,146.56,2.20276322]
[1642304856283,24.8425,146.64,146.56,8.45276322]
[1642304857088,24.8425,146.64,146.56,6.26]
[1642304857288,24.8425,146.64,146.56,0.26]
[1642304857590,24.8425,146.64,146.56,6.26]
[1642304858189,0.26,146.63,146.56,0.26]
[1642304858388,0.26,146.63,146.56,6.26]
[1642304858793,0.26,146.63,146.56,6.51]
[1642304858994,0.26,146.63,146.56,0.51]
[1642304859922,0.26,146.63,146.56,0.26]
[1642304861623,16.83751116,146.65,146.56,0.26]
[1642304861822,0.26,146.64,146.56,0.26]
[1642304862222,0.26,146.64,146.56,2.20276322]
[1642304862522,0.26,146.64,146.56,8.45276322]
[1642304863424,0.26,146.64,146.57,22.6946]
[1642304863823,16.58751116,146.65,146.58,0.26]
[1642304865427,16.83751116,146.65,146.58,0.26]
[1642304866628,16.58751116,146.65,146.58,0.26]
[1642304868331,16.83751116,146.65,146.58,0.26]
[1642304868931,16.83751116,146.65,146.57,30.88736322]
[1642304869130,16.83751116,146.65,146.58,0.26]
[1642304869530,16.83751116,146.65,146.57,30.63736322]
[1642304869730,16.83751116,146.65,146.58,0.26]
[1642304869931,16.83751116,146.65,146.57,28.6946]
[1642304870131,24.2964,146.64,146.57,28.6946]
[1642304870334,24.5464,146.64,146.57,28.6946]
[1642304870734,30.5464,146.64,146.57,28.6946]
[1642304871337,30.5464,146.64,146.57,6.0]
[1642304871736,30.5464,146.64,146.55,1.94276322]